bitfinex/quotes_BTCUSD_20240611
["timestamp","ask_amount","ask_price","bid_price","bid_amount"]
[1718110861697,0.48050993,66932.0,66931.0,0.00679268]
[1718110862744,0.33619,66932.0,66931.0,0.48697448]
[1718110862948,0.33619,66932.0,66931.0,0.28330268]
[1718110863340,0.96079799,66932.0,66931.0,0.00679268]
[1718110863556,1.3105722,66932.0,66931.0,0.00679268]
[1718110863769,1.45426219,66932.0,66931.0,0.00679268]
[1718110863974,1.43793399,66932.0,66931.0,0.00679268]
[1718110864211,0.873822,66932.0,66931.0,0.00679268]
[1718110864638,1.354032,66932.0,66931.0,0.00679268]
[1718110864855,1.7613492,66932.0,66931.0,0.00679268]
[1718110865070,1.745021,66932.0,66931.0,0.00679268]
[1718110865319,1.697201,66932.0,66931.0,0.00679268]
[1718110865545,1.720201,66932.0,66931.0,0.00679268]
[1718110866193,1.055222,66932.0,66931.0,0.00679268]
[1718110866408,0.873822,66932.0,66931.0,0.00679268]
[1718110866878,1.055222,66932.0,66931.0,0.00679268]
[1718110867102,1.0715502,66932.0,66931.0,0.00679268]
[1718110867315,1.2880192,66932.0,66931.0,0.00679268]
[1718110868692,1.53586499,66932.0,66931.0,0.00679268]
[1718110868894,1.3933602,66932.0,66931.0,0.00679268]
[1718110869139,2.93200699,66932.0,66931.0,0.00679268]
[1718110869368,1.34239599,66932.0,66931.0,0.00679268]
[1718110869581,3.18395499,66932.0,66931.0,0.00679268]
[1718110869819,3.18395499,66932.0,66923.0,0.00210227]
[1718110869820,0.0163282,66924.0,66923.0,0.00129354]
[1718110870021,0.60891713,66924.0,66923.0,0.00129354]
[1718110870240,1.07445831,66924.0,66923.0,0.00129354]
[1718110870451,2.25456031,66924.0,66923.0,0.00129354]
[1718110870652,2.94975324,66924.0,66923.0,0.00129354]
[1718110870869,2.98175324,66924.0,66923.0,0.00129354]
[1718110871078,1.43286824,66924.0,66923.0,0.00129354]
[1718110871290,1.73571424,66924.0,66923.0,0.00129354]
[1718110871495,1.40786824,66924.0,66923.0,0.00129354]
[1718110871715,1.40386824,66924.0,66923.0,0.00129354]
[1718110871926,0.04369518,66923.0,66917.0,0.07215996]
[1718110872141,0.14431993,66922.0,66918.0,0.2761]
[1718110872359,0.14369518,66923.0,66918.0,0.5790818]
[1718110872360,0.149434,66919.0,66918.0,0.5790818]
[1718110873082,0.059788,66932.0,66931.0,0.3029818]
[1718110873335,0.209193,66932.0,66931.0,0.36591]
[1718110873553,0.209193,66932.0,66931.0,0.5520873]
[1718110874645,0.210193,66932.0,66931.0,0.5520873]
[1718110875070,0.310193,66932.0,66931.0,0.5520873]
[1718110875504,0.149412,66929.0,66928.0,0.1861773]
[1718110875753,0.249412,66929.0,66928.0,0.1861773]
[1718110876598,0.249412,66929.0,66928.0,0.35764726]
[1718110877877,0.249412,66929.0,66928.0,0.25833726]
[1718110878315,0.149414,66928.0,66927.0,0.2861773]
[1718110878549,0.149414,66928.0,66924.0,0.1]
[1718110878550,0.14942,66925.0,66924.0,0.1]
[1718110878783,0.149425,66923.0,66922.0,0.1843]
[1718110879019,0.149425,66923.0,66917.0,0.2861773]
[1718110879020,0.149436,66918.0,66917.0,0.2861773]
[1718110879624,0.149438,66917.0,66916.0,0.2854873]
[1718110879853,0.149438,66917.0,66916.0,0.3854873]
[1718110880088,0.149438,66917.0,66916.0,0.6578873]
[1718110880731,0.149429,66922.0,66921.0,0.6578873]
[1718110881011,0.149429,66922.0,66921.0,0.65782899]
[1718110881320,0.149429,66922.0,66921.0,0.67782899]
[1718110881539,0.249407,66931.0,66930.0,0.55782899]
[1718110881748,0.149407,66931.0,66930.0,0.55782899]
[1718110881988,0.249407,66931.0,66930.0,0.55782899]
[1718110882423,0.249407,66931.0,66930.0,0.37171]
[1718110882689,0.249407,66931.0,66930.0,0.2724]
[1718110883140,0.249407,66931.0,66930.0,0.25623859]
[1718110883380,0.252407,66931.0,66930.0,0.25623859]
[1718110883596,0.252407,66931.0,66930.0,0.42619617]
[1718110883597,0.249407,66931.0,66930.0,0.42619617]
[1718110884016,0.256407,66931.0,66930.0,0.52544786]
[1718110884526,0.252407,66931.0,66930.0,0.52544786]
[1718110884687,0.256407,66931.0,66930.0,0.52544786]
[1718110885497,0.253407,66931.0,66930.0,0.52544786]
[1718110885803,0.256407,66931.0,66930.0,0.52544786]
[1718110886159,0.252407,66931.0,66930.0,0.52544786]
[1718110886364,0.256407,66931.0,66930.0,0.52544786]
[1718110886770,0.007,66931.0,66930.0,0.64544786]
[1718110887018,0.003,66931.0,66930.0,0.64544786]
[1718110887233,0.007,66931.0,66930.0,0.64544786]
[1718110887857,0.003,66931.0,66930.0,0.64544786]
[1718110888513,0.003,66931.0,66930.0,0.64538955]
[1718110888731,0.003,66931.0,66930.0,0.62538955]
[1718110888936,0.149385,66941.0,66940.0,0.46352899]
[1718110889167,0.249385,66941.0,66940.0,0.46352899]
[1718110889386,0.30916,66941.0,66940.0,0.46352899]
[1718110890215,0.31516,66941.0,66940.0,0.46352899]
[1718110890687,0.30916,66941.0,66940.0,0.46352899]
[1718110891135,0.31016,66941.0,66940.0,0.46352899]
[1718110891763,0.31016,66941.0,66940.0,0.55702899]
[1718110892408,0.31016,66941.0,66940.0,0.5534155]
[1718110892620,0.31016,66941.0,66940.0,0.55702899]
[1718110893483,0.30916,66941.0,66940.0,0.55702899]
[1718110893677,0.30916,66941.0,66940.0,0.55697068]
[1718110893856,0.31016,66941.0,66940.0,0.55335719]
[1718110894086,0.31016,66941.0,66940.0,0.37085169]
[1718110894433,0.30916,66941.0,66940.0,0.37085169]
[1718110894634,0.30916,66941.0,66940.0,0.35469261]
[1718110894905,0.30916,66941.0,66940.0,0.33719811]
[1718110895316,0.30916,66941.0,66940.0,0.24369811]
[1718110895525,0.30916,66941.0,66940.0,0.22753903]
[1718110895957,0.30916,66941.0,66940.0,0.41365802]
[1718110896167,0.31016,66941.0,66940.0,0.41365802]
[1718110897452,0.31016,66941.0,66940.0,0.49995802]
[1718110897629,0.250385,66941.0,66940.0,0.49995802]
[1718110899343,0.149385,66941.0,66940.0,0.61995802]
[1718110899582,0.149377,66945.0,66944.0,0.33555802]
[1718110901072,0.154377,66945.0,66944.0,0.33555802]
[1718110901669,0.154377,66945.0,66944.0,0.42125802]
[1718110901879,0.154376,66945.0,66944.0,0.33555802]
[1718110902968,0.160376,66945.0,66944.0,0.33555802]
[1718110905580,0.011,66945.0,66944.0,0.44715802]
[1718110905815,0.011,66945.0,66944.0,0.62285802]
[1718110906552,0.011,66945.0,66944.0,0.76717795]
[1718110906764,0.011,66945.0,66944.0,0.91649764]
[1718110906980,0.011,66945.0,66944.0,1.22640191]
[1718110907417,0.059761,66955.0,66954.0,0.43809421]
[1718110907635,0.1,66957.0,66956.0,0.04943903]
[1718110907843,0.1,66957.0,66956.0,0.30765967]
[1718110908053,0.059759,66957.0,66956.0,0.32765967]
[1718110908258,0.059759,66957.0,66956.0,0.42765967]
[1718110908466,0.059759,66957.0,66956.0,0.60795967]
[1718110908691,0.059759,66957.0,66956.0,1.0264796]
[1718110909336,0.059759,66957.0,66956.0,1.2758306]
[1718110909551,0.149296,66981.0,66980.0,0.23549971]
[1718110909766,0.0662,66984.0,66977.0,0.04943903]
[1718110909997,0.149302,66978.0,66977.0,0.23549971]
[1718110911163,0.149304,66977.0,66976.0,0.23194453]
[1718110911334,0.149309,66975.0,66974.0,0.1849]
[1718110911581,0.149309,66975.0,66974.0,0.23433903]
[1718110911582,0.249309,66975.0,66974.0,0.23433903]
[1718110912679,0.249309,66975.0,66974.0,0.42039971]
[1718110913309,0.249309,66975.0,66974.0,0.04943903]
[1718110913923,0.249309,66975.0,66974.0,0.23549971]
[1718110914161,0.262309,66975.0,66974.0,0.23549971]
[1718110914334,0.275309,66975.0,66974.0,0.23649971]
[1718110914695,0.275309,66975.0,66974.0,0.05043903]
[1718110916549,0.6195472,66975.0,66974.0,0.001]
[1718110916751,0.88346713,66975.0,66974.0,0.001]
[1718110916955,1.20508513,66975.0,66974.0,0.001]
[1718110918457,2.2977936,66975.0,66974.0,0.001]
[1718110918603,1.4731406,66975.0,66974.0,0.001]
[1718110918854,4.6203666,66975.0,66974.0,1e-06]
[1718110919073,1.86621409,66975.0,66974.0,1e-06]
[1718110919471,5.15721509,66975.0,66974.0,1e-06]
[1718110919700,0.58407982,66959.0,66958.0,0.43295979]
[1718110919895,0.81195493,66959.0,66958.0,0.43295979]
[1718110920247,0.149358,66953.0,66952.0,0.1]
[1718110920454,0.149358,66953.0,66952.0,0.14943903]
[1718110921074,0.149362,66951.0,66950.0,0.1]
[1718110921286,0.1,66951.0,66949.0,0.04943903]
[1718110921462,0.149365,66950.0,66949.0,0.04943903]
[1718110921717,0.149365,66950.0,66948.0,0.04943903]
[1718110921718,0.149367,66949.0,66948.0,0.04943903]
[1718110921938,0.249367,66949.0,66948.0,0.04943903]
[1718110922371,0.28734593,66949.0,66940.0,0.04943903]
[1718110922607,0.149387,66940.0,66939.0,0.51969971]
[1718110922771,0.149387,66940.0,66939.0,0.04943903]
[1718110922986,0.149387,66940.0,66939.0,0.14943903]
[1718110923403,0.149387,66940.0,66939.0,0.33549971]
[1718110923849,0.0149387,66940.0,66936.0,0.1]
[1718110924080,0.149394,66937.0,66935.0,0.1]
[1718110924302,0.149394,66937.0,66932.0,0.1]
[1718110924303,0.149403,66933.0,66932.0,0.1]
[1718110924537,0.149405,66932.0,66931.0,0.04943903]
[1718110924803,0.149405,66932.0,66927.0,0.44716068]
[1718110924804,0.149407,66931.0,66930.0,0.22159899]
[1718110925093,0.149409,66930.0,66929.0,0.04943903]
[1718110925319,0.149409,66930.0,66929.0,0.33549971]
[1718110925739,0.149409,66930.0,66929.0,0.14943903]
[1718110925948,0.149409,66930.0,66929.0,0.33549971]
[1718110926853,0.47610192,66945.0,66929.0,0.33549971]
[1718110927074,0.149389,66939.0,66938.0,0.23549971]
[1718110927298,0.249389,66939.0,66938.0,0.23549971]
[1718110927779,0.62042185,66945.0,66944.0,0.05299421]
[1718110927780,0.47610192,66945.0,66944.0,0.05299421]
[1718110927987,0.72547792,66945.0,66944.0,0.23549971]
[1718110928408,0.1814,66960.0,66944.0,0.23549971]
[1718110928409,0.149367,66949.0,66948.0,0.04943903]
[1718110928628,0.149367,66949.0,66948.0,0.51399971]
[1718110929483,0.47610192,66962.0,66960.0,0.1825055]
[1718110929484,0.14934,66961.0,66960.0,0.1825055]
[1718110929695,0.14934,66961.0,66960.0,0.51249971]
[1718110931288,0.24934,66961.0,66960.0,0.51249971]
[1718110932231,0.25034,66961.0,66960.0,0.51249971]
[1718110932459,0.17464419,66961.0,66956.0,0.1]
[1718110932678,0.24431993,66960.0,66956.0,0.1]
[1718110932914,0.24431993,66960.0,66956.0,0.2825055]
[1718110933161,0.149347,66958.0,66957.0,0.49405967]
[1718110933389,0.149347,66958.0,66957.0,0.58315967]
[1718110933614,0.249347,66958.0,66957.0,0.23549971]
[1718110933851,0.149349,66957.0,66956.0,0.33549971]
[1718110934094,0.249349,66957.0,66956.0,0.33549971]
[1718110934310,0.1,66957.0,66956.0,0.1]
[1718110934531,0.47621402,66957.0,66956.0,0.1]
[1718110934784,0.24431993,66957.0,66954.0,0.1]
[1718110935010,0.39366893,66957.0,66956.0,0.001]
[1718110935260,0.149354,66955.0,66954.0,0.1]
[1718110935975,0.149354,66955.0,66954.0,0.28606068]
[1718110936864,0.149354,66955.0,66954.0,0.28706068]
[1718110937797,0.149354,66955.0,66954.0,0.51029971]
[1718110938053,0.149354,66955.0,66954.0,0.60059971]
[1718110938740,0.1,66957.0,66956.0,0.23549971]
[1718110938965,0.149349,66957.0,66956.0,0.33549971]
[1718110939192,0.249349,66957.0,66956.0,0.33549971]
[1718110940210,0.14934,66961.0,66960.0,0.23549971]
[1718110940425,0.24934,66961.0,66960.0,0.23549971]
[1718110941905,0.11,66961.0,66960.0,0.04943903]
[1718110942113,0.11,66961.0,66960.0,0.23549971]
[1718110942322,0.1,66961.0,66960.0,0.23549971]
[1718110942550,0.102,66961.0,66960.0,0.23549971]
[1718110943023,0.002,66961.0,66960.0,0.23549971]
[1718110943229,0.25134,66961.0,66960.0,0.23549971]
[1718110943662,0.25134,66961.0,66960.0,0.18606068]
[1718110943872,0.102,66961.0,66957.0,0.1]
[1718110944090,0.14936,66952.0,66951.0,0.14943903]
[1718110944589,0.448081,66952.0,66951.0,0.14943903]
[1718110944801,0.14936,66952.0,66951.0,0.14943903]
[1718110945672,0.14936,66952.0,66951.0,0.33549971]
[1718110945892,0.15136,66952.0,66951.0,0.33649971]
[1718110946109,0.002,66952.0,66951.0,0.33649971]
[1718110946332,0.002,66952.0,66951.0,0.62839971]
[1718110946560,0.002,66952.0,66951.0,0.92768039]
[1718110948926,0.002,66952.0,66951.0,0.92766309]
[1718110951690,0.002,66952.0,66951.0,0.76334316]
[1718110951897,0.002,66952.0,66951.0,0.78334316]
[1718110954099,0.002,66952.0,66951.0,1.22766309]
[1718110954320,0.129246,66981.0,66978.0,0.23194453]
[1718110954321,0.1493,66979.0,66978.0,0.23194453]
[1718110954536,0.2493,66979.0,66978.0,0.23549971]
[1718110955620,0.2633,66979.0,66978.0,0.23549971]
[1718110956588,0.2633,66979.0,66978.0,0.23194453]
[1718110956816,0.2633,66979.0,66972.0,0.04943903]
[1718110956817,0.149313,66973.0,66972.0,0.04943903]
[1718110957346,0.249313,66973.0,66972.0,0.04943903]
[1718110958032,0.249313,66973.0,66972.0,0.30765967]
[1718110958254,0.249313,66973.0,66971.0,0.14943903]
[1718110958255,0.1,66973.0,66971.0,0.14943903]
[1718110958484,0.04444482,66979.0,66971.0,0.14943903]
[1718110958485,0.148316,66972.0,66971.0,0.14943903]
[1718110958700,0.248316,66972.0,66971.0,0.14943903]
[1718110959176,0.56339282,66972.0,66971.0,0.1]
[1718110959408,0.298645,66969.0,66968.0,0.14943903]
[1718110959836,0.149322,66969.0,66968.0,0.14943903]
[1718110960468,0.149322,66969.0,66968.0,0.1]
[1718110960689,0.01644482,66969.0,66968.0,0.1]
[1718110960914,0.01644482,66969.0,66963.0,0.04943903]
[1718110960915,0.149331,66965.0,66964.0,0.1]
[1718110961714,0.447994,66965.0,66964.0,0.1]
[1718110962692,0.450994,66965.0,66964.0,0.1]
[1718110963115,0.450994,66965.0,66964.0,0.14943903]
[1718110963584,0.152331,66965.0,66964.0,0.33549971]
[1718110964013,0.155331,66965.0,66964.0,0.33194453]
[1718110964230,0.155331,66965.0,66964.0,0.14943903]
[1718110965913,0.155331,66965.0,66964.0,0.33194453]
[1718110966316,0.155331,66965.0,66964.0,0.33549971]
[1718110967850,0.155331,66965.0,66964.0,0.60399971]
[1718110968646,0.155331,66965.0,66964.0,0.75894189]
[1718110970028,0.155331,66965.0,66964.0,0.60399971]
[1718110971339,0.155331,66965.0,66964.0,0.60044453]
[1718110972252,0.155331,66965.0,66964.0,0.41793903]
[1718110972453,0.155331,66965.0,66964.0,0.60044453]
[1718110972655,0.155331,66965.0,66964.0,0.60399971]
[1718110972869,0.155331,66965.0,66964.0,0.14943903]
[1718110973366,0.155331,66965.0,66964.0,0.33194453]
[1718110975652,0.155331,66965.0,66964.0,0.33549971]
[1718110978465,0.453994,66965.0,66964.0,0.33549971]
[1718110978696,0.155331,66965.0,66964.0,0.60289971]
[1718110978911,0.155331,66965.0,66964.0,0.75785159]
[1718110979991,0.152331,66965.0,66964.0,0.75785159]
[1718110980195,0.152331,66965.0,66964.0,0.75983464]
[1718110980600,0.152331,66965.0,66964.0,0.75783464]
[1718110981029,0.149331,66965.0,66964.0,0.75983464]
[1718110981257,0.149331,66965.0,66964.0,0.77783464]
[1718110981473,0.149331,66965.0,66964.0,0.75783464]
[1718110981687,0.149331,66965.0,66964.0,0.75983464]
[1718110984064,0.149331,66965.0,66964.0,0.60489971]
[1718110984271,0.149331,66965.0,66964.0,0.75984367]
[1718110984474,0.149331,66965.0,66964.0,0.75784367]
[1718110984689,0.149331,66965.0,66964.0,0.75984367]
[1718110985123,0.149331,66965.0,66964.0,0.75784367]
[1718110986508,0.149331,66965.0,66964.0,0.66794367]
[1718110986726,0.149331,66965.0,66964.0,0.66994367]
[1718110986953,0.149331,66965.0,66964.0,0.56994634]
[1718110987174,0.149331,66965.0,66964.0,0.66794634]
[1718110987406,0.149331,66965.0,66964.0,0.66994634]
[1718110987857,0.149331,66965.0,66964.0,0.66794634]
[1718110988077,0.149331,66965.0,66964.0,0.66894634]
[1718110988307,1.14211003,66965.0,66964.0,0.15594663]
[1718110988541,1.14211003,66965.0,66961.0,0.1]
[1718110988542,0.448,66964.0,66963.0,0.1]
[1718110989056,0.448014,66962.0,66961.0,0.14943903]
[1718110990508,0.46445882,66962.0,66961.0,0.14943903]
[1718110990716,0.47145882,66962.0,66961.0,0.15043903]
[1718110991158,1.04646933,66962.0,66961.0,0.101]
[1718110991377,1.04646933,66962.0,66961.0,0.001]
[1718110991378,1.21117118,66962.0,66961.0,0.001]
[1718110991593,1.63284718,66962.0,66961.0,0.001]
[1718110991802,2.46767776,66962.0,66961.0,0.001]
[1718110992021,3.14858574,66962.0,66961.0,0.001]
[1718110992236,3.34858574,66962.0,66961.0,0.001]
[1718110992469,3.34858574,66962.0,66958.0,0.00086]
[1718110992470,0.91122529,66959.0,66958.0,0.00086]
[1718110992697,0.91122529,66959.0,66941.0,0.43295979]
[1718110992698,0.89245982,66942.0,66941.0,0.43295979]
[1718110992935,1.2491816,66942.0,66941.0,0.43295979]
[1718110993154,1.2491816,66942.0,66925.0,0.14943903]
[1718110993155,0.149418,66926.0,66925.0,0.14943903]
[1718110993606,0.149418,66926.0,66921.0,0.00086]
[1718110993607,0.149427,66922.0,66921.0,0.00086]
[1718110994066,0.249427,66922.0,66921.0,0.00086]
[1718110994556,0.51167463,66922.0,66921.0,0.00086]
[1718110995210,0.97178481,66922.0,66921.0,0.00086]
[1718110995419,0.98822963,66922.0,66921.0,0.00086]
[1718110995843,0.80808481,66922.0,66921.0,0.00086]
[1718110996286,0.79508481,66922.0,66921.0,0.00086]
[1718110996719,0.80808481,66922.0,66921.0,0.00086]
[1718110996912,0.82208481,66922.0,66921.0,0.00086]
[1718110997318,0.80808481,66922.0,66921.0,0.00086]
[1718110997551,0.82208481,66922.0,66921.0,0.00086]
[1718110998812,0.72060193,66922.0,66921.0,0.00086]
[1718110999016,0.70660193,66922.0,66921.0,0.00086]
[1718110999463,0.72060193,66922.0,66921.0,0.00086]
[1718111000557,0.70660193,66922.0,66921.0,0.00086]
[1718111000754,0.72060193,66922.0,66921.0,0.00086]
[1718111000956,0.85658138,66922.0,66921.0,0.00086]
[1718111004510,0.91637738,66922.0,66921.0,0.00086]
[1718111005356,0.337223,66922.0,66921.0,0.41475971]
[1718111006329,0.277427,66922.0,66921.0,0.41475971]
[1718111006543,0.263427,66922.0,66921.0,0.41475971]
[1718111007288,0.263427,66922.0,66921.0,0.05029903]
[1718111007498,0.249427,66922.0,66921.0,0.05029903]
[1718111007695,0.3102326,66922.0,66921.0,0.00086]
[1718111007895,0.3232326,66922.0,66921.0,0.00086]
[1718111008522,0.3362326,66922.0,66921.0,0.00086]
[1718111009149,0.79585235,66922.0,66921.0,0.00086]
[1718111009382,1.09470735,66922.0,66921.0,0.00086]
[1718111009905,0.77940753,66922.0,66921.0,0.00086]
[1718111010477,0.95610753,66922.0,66921.0,0.00086]
[1718111011877,0.71860193,66922.0,66921.0,0.00086]
[1718111018621,0.73504675,66922.0,66921.0,0.00086]
[1718111018825,0.71860193,66922.0,66921.0,0.00086]
[1718111019037,0.41974693,66922.0,66921.0,0.17376]
[1718111019443,0.41974693,66922.0,66921.0,0.3562655]
[1718111019890,0.41974693,66922.0,66921.0,0.17376]
[1718111020543,0.46770082,66922.0,66921.0,0.17376]
[1718111021436,0.41974693,66922.0,66921.0,0.32881171]
[1718111022347,0.41974693,66922.0,66921.0,0.32881528]
[1718111027142,0.43619175,66922.0,66921.0,0.15591528]
[1718111027347,1.03390175,66922.0,66921.0,0.15591528]
[1718111027552,1.03390175,66922.0,66921.0,0.1397527]
[1718111027753,0.149443,66915.0,66914.0,0.1]
[1718111028024,0.249443,66915.0,66914.0,0.1]
[1718111028226,0.548329,66915.0,66914.0,0.1]
[1718111029205,0.552329,66915.0,66914.0,0.1]
[1718111029836,0.556329,66915.0,66914.0,0.1]
[1718111030032,0.257443,66915.0,66914.0,0.14943903]
[1718111030230,0.257443,66915.0,66914.0,0.51479971]
[1718111031656,0.257443,66915.0,66914.0,0.41479971]
[1718111031868,0.257443,66915.0,66914.0,0.60369971]
[1718111032746,0.257443,66915.0,66914.0,0.50369971]
[1718111033058,0.257443,66915.0,66914.0,0.60369971]
[1718111035569,0.257443,66915.0,66914.0,0.50369971]
[1718111035825,0.257443,66915.0,66914.0,0.60369971]
[1718111037511,0.257443,66915.0,66914.0,0.75874821]
[1718111038306,0.257443,66915.0,66914.0,0.57268753]
[1718111038512,0.257443,66915.0,66914.0,0.75519303]
[1718111038728,0.257443,66915.0,66914.0,0.57268753]
[1718111039142,0.257443,66915.0,66914.0,0.55635933]
[1718111039365,0.257443,66915.0,66914.0,0.53886483]
[1718111039582,0.157443,66915.0,66914.0,0.1550485]
[1718111039902,0.157443,66915.0,66911.0,0.1]
[1718111039903,0.01644482,66912.0,66911.0,0.1]
[1718111040080,0.16589882,66910.0,66909.0,0.09239392]
[1718111040294,0.149456,66909.0,66908.0,0.09239392]
[1718111040530,0.149456,66909.0,66908.0,0.56417093]
[1718111040960,0.008,66915.0,66914.0,0.10801025]
[1718111040961,0.157443,66915.0,66914.0,0.10801025]
[1718111041178,0.157443,66915.0,66914.0,0.50899799]
[1718111041179,0.008,66915.0,66914.0,0.50899799]
[1718111041619,0.004,66915.0,66914.0,0.66708941]
[1718111042053,0.004,66915.0,66914.0,0.73669371]
[1718111042268,0.004,66915.0,66914.0,0.64708941]
[1718111042486,0.149429,66922.0,66921.0,0.16989577]
[1718111042714,0.02,66922.0,66921.0,0.00444281]
[1718111042916,0.02,66922.0,66920.0,0.00444281]
[1718111043159,0.169429,66921.0,66920.0,0.00444281]
[1718111043802,0.149429,66921.0,66920.0,0.00444281]
[1718111044904,0.149429,66921.0,66914.0,0.45089577]
[1718111044905,0.149425,66923.0,66922.0,0.00444281]
[1718111045113,0.14944,66917.0,66914.0,0.27766359]
[1718111045536,0.149442,66916.0,66914.0,0.27766359]
[1718111045754,0.02,66918.0,66910.0,0.1742]
[1718111046219,0.151,66919.0,66910.0,0.34409577]
[1718111046444,0.14748505,66919.0,66910.0,0.34409577]
[1718111046661,0.14748505,66919.0,66910.0,0.1742]
[1718111046662,0.149452,66911.0,66910.0,0.1742]
[1718111046875,0.149452,66911.0,66907.0,0.02243239]
[1718111046876,0.159458,66908.0,66907.0,0.1738]
[1718111047130,0.14947,66903.0,66901.0,0.04479937]
[1718111047360,0.14947,66903.0,66899.0,0.16989577]
[1718111047594,0.1767,66915.0,66899.0,0.16989577]
[1718111047595,0.149473,66902.0,66900.0,0.1738]
[1718111047809,0.20680423,66915.0,66900.0,0.15962425]
[1718111047810,0.149474,66901.0,66900.0,0.15962425]
[1718111048463,0.149481,66898.0,66897.0,0.00856]
[1718111048689,0.169481,66898.0,66897.0,0.00856]
[1718111048905,0.35568903,66898.0,66897.0,0.00856]
[1718111049144,0.31380093,66898.0,66897.0,0.00856]
[1718111049370,1.21432916,66898.0,66897.0,0.00856]
[1718111049592,1.21432916,66898.0,66875.0,0.11200742]
[1718111049593,0.169526,66878.0,66877.0,0.04480297]
[1718111049816,0.169526,66878.0,66873.0,0.18210594]
[1718111049817,0.02,66876.0,66873.0,0.08506134]
[1718111050050,0.02,66876.0,66868.0,0.43295979]
[1718111050051,0.02,66877.0,66868.0,0.43295979]
[1718111050271,0.1,66881.0,66872.0,0.16989577]
[1718111050486,0.149534,66874.0,66871.0,0.16989577]
[1718111050936,0.24431993,66881.0,66872.0,0.1838]
[1718111051145,0.149537,66873.0,66872.0,0.1838]
[1718111051565,0.149537,66873.0,66872.0,0.18374169]
[1718111051999,0.149537,66873.0,66872.0,0.35363746]
[1718111052224,0.001,66878.0,66872.0,0.35363746]
[1718111052440,0.001,66878.0,66877.0,0.22456123]
[1718111052892,0.149522,66880.0,66879.0,0.15240127]
[1718111053317,0.149522,66880.0,66879.0,0.04763255]
[1718111053542,0.149512,66885.0,66879.0,0.04763255]
[1718111053760,0.1,66884.0,66882.0,0.04763255]
[1718111054032,0.149512,66884.0,66883.0,0.01497615]
[1718111054240,0.1732,66906.0,66888.0,0.01497615]
[1718111054463,0.06653988,66912.0,66900.0,0.01497615]
[1718111054464,0.149471,66903.0,66900.0,0.01497615]
[1718111054679,0.149471,66903.0,66902.0,0.17989693]
[1718111054918,0.149471,66903.0,66902.0,0.1727]
[1718111055362,0.149471,66903.0,66902.0,0.17989693]
[1718111055785,0.149479,66899.0,66892.0,0.1727]
[1718111056006,0.149492,66893.0,66892.0,0.1577597]
[1718111056434,0.149494,66892.0,66891.0,0.0863]
[1718111057284,0.169499,66890.0,66889.0,0.46421258]
[1718111057499,0.29381893,66890.0,66889.0,0.46421258]
[1718111057724,0.41381893,66890.0,66889.0,0.46421258]
[1718111057934,0.41381893,66890.0,66880.0,0.00719693]
[1718111057935,0.02,66888.0,66880.0,0.00719693]
[1718111058151,0.02,66887.0,66880.0,0.00719693]
[1718111058370,0.02,66887.0,66877.0,0.0936]
[1718111058371,0.02,66884.0,66877.0,0.0936]
[1718111058615,0.02,66880.0,66874.0,0.0886]
[1718111059081,0.1,66886.0,66868.0,0.0903]
[1718111059082,0.149542,66871.0,66868.0,0.0903]
[1718111059288,0.14431993,66879.0,66870.0,0.00719693]
[1718111059501,0.1309086,66878.0,66868.0,0.09749693]
[1718111059705,0.14431993,66877.0,66873.0,0.07215996]
[1718111059936,0.1,66876.0,66873.0,0.07215996]
[1718111060141,0.1,66876.0,66870.0,0.00719693]
[1718111060399,0.001,66871.0,66870.0,0.00719693]
[1718111060885,0.1,66876.0,66870.0,0.00719693]
[1718111061124,0.1,66876.0,66873.0,0.001]
[1718111061588,0.19632874,66875.0,66866.0,0.00719693]
[1718111061800,0.02,66873.0,66866.0,0.00719693]
[1718111062021,0.02,66873.0,66866.0,0.07935689]
[1718111062236,0.16431993,66875.0,66866.0,0.07935689]
[1718111062474,0.149548,66868.0,66866.0,0.07935689]
[1718111063555,0.14955,66867.0,66866.0,0.001]
[1718111063771,0.02,66870.0,66862.0,0.00719693]
[1718111063979,0.149555,66865.0,66862.0,0.00719693]
[1718111065063,0.149555,66865.0,66859.0,0.2686]
[1718111065279,0.149555,66865.0,66859.0,0.27579693]
[1718111065546,0.150555,66865.0,66859.0,0.27579693]
[1718111065766,0.150555,66865.0,66859.0,0.2686]
[1718111065995,0.31487493,66865.0,66857.0,0.07215996]
[1718111066218,0.50297493,66865.0,66857.0,0.07215996]
[1718111066397,0.53903903,66865.0,66857.0,0.07215996]
[1718111066657,0.53903903,66865.0,66864.0,0.0144598]
[1718111066658,0.54003903,66865.0,66864.0,0.0144598]
[1718111066865,0.48397493,66865.0,66864.0,0.0144598]
[1718111067306,0.41587493,66865.0,66864.0,0.0144598]
[1718111068365,0.39587493,66865.0,66864.0,0.0144598]
[1718111068580,0.002,66865.0,66864.0,0.02165673]
[1718111068798,0.002,66865.0,66864.0,0.81145673]
[1718111069004,0.002,66865.0,66864.0,0.79145673]
[1718111070065,0.002,66865.0,66864.0,0.81145673]
[1718111071354,0.149528,66877.0,66876.0,0.00719693]
[1718111071557,0.249528,66877.0,66876.0,0.00719693]
[1718111072042,0.249528,66877.0,66871.0,0.2608]
[1718111072043,0.1,66877.0,66871.0,0.2608]
[1718111072259,0.1,66877.0,66872.0,0.00719693]
[1718111072464,0.1,66877.0,66874.0,0.00719693]
[1718111072681,0.02,66884.0,66874.0,0.00719693]
[1718111072856,0.149532,66875.0,66874.0,0.00719693]
[1718111074470,0.149515,66883.0,66882.0,0.00719693]
[1718111074675,0.149505,66887.0,66886.0,0.00719693]
[1718111074886,0.149508,66886.0,66885.0,0.00719693]
[1718111075108,0.249508,66886.0,66885.0,0.00719693]
[1718111076680,0.47610192,66890.0,66889.0,0.00719693]
[1718111076932,0.57610192,66890.0,66889.0,0.00719693]
[1718111077603,0.149501,66889.0,66888.0,0.00719693]
[1718111077824,0.57610192,66890.0,66886.0,0.00719693]
[1718111077825,0.149505,66887.0,66886.0,0.00719693]
[1718111078322,0.57610192,66890.0,66883.0,0.00719693]
[1718111078323,0.59610192,66890.0,66883.0,0.00719693]
[1718111078546,0.149523,66879.0,66878.0,0.00719693]
[1718111078775,0.15179564,66889.0,66875.0,0.2648]